[Event "Late-Titled-Tuesday-Blitz-October-17-2023"]
[Site "Chess.com"]
[Date "2023.10.17"]
[Round "2"]
[White "rdarruda"]
[Black "Estrategia_vs_Tactica"]
[Result "1-0"]
[WhiteElo "2485"]
[BlackElo "2251"]
[TimeControl "180+1"]
[EndTime "14:17:19 PDT"]
[Termination "rdarruda won by resignation"]

1. d4 {[%clk 0:02:53.9]} 1... Nf6 {[%clk 0:02:57]} 2. Nf3 {[%clk 0:02:53.7]}
2... c6 {[%clk 0:02:57]} 3. c4 {[%clk 0:02:53.1]} 3... d5 {[%clk 0:02:56.8]} 4.
e3 {[%clk 0:02:53.2]} 4... g6 {[%clk 0:02:56.3]} 5. Nc3 {[%clk 0:02:53.2]} 5...
Bg7 {[%clk 0:02:56.8]} 6. Bd3 {[%clk 0:02:53.3]} 6... O-O {[%clk 0:02:56.8]} 7.
O-O {[%clk 0:02:53.5]} 7... dxc4 {[%clk 0:02:56.4]} 8. Bxc4 {[%clk 0:02:53]}
8... b5 {[%clk 0:02:56.8]} 9. Bb3 {[%clk 0:02:52.2]} 9... Bb7 {[%clk 0:02:56.3]}
10. Qe2 {[%clk 0:02:52.3]} 10... a6 {[%clk 0:02:56.1]} 11. Rd1 {[%clk
0:02:52.1]} 11... Nbd7 {[%clk 0:02:55.5]} 12. e4 {[%clk 0:02:52.1]} 12... Qc7
{[%clk 0:02:53.4]} 13. e5 {[%clk 0:02:47]} 13... Nd5 {[%clk 0:02:53]} 14. Nxd5
{[%clk 0:02:40.7]} 14... cxd5 {[%clk 0:02:53.9]} 15. e6 {[%clk 0:02:40.8]} 15...
Nb6 {[%clk 0:02:49.5]} 16. exf7+ {[%clk 0:02:39.5]} 16... Rxf7 {[%clk
0:02:48.8]} 17. Ng5 {[%clk 0:02:39.6]} 17... Rf5 {[%clk 0:02:42.3]} 18. Qe6+
{[%clk 0:02:34]} 18... Kh8 {[%clk 0:02:38.5]} 19. Nf7+ {[%clk 0:02:30.2]} 19...
Rxf7 {[%clk 0:02:38.1]} 20. Qxf7 {[%clk 0:02:31.1]} 20... Rf8 {[%clk 0:02:36.3]}
21. Qe6 {[%clk 0:02:29.7]} 21... Rf6 {[%clk 0:02:24.3]} 22. Qe2 {[%clk
0:02:28.3]} 22... Nc4 {[%clk 0:02:01.6]} 23. Bg5 {[%clk 0:02:25.7]} 23... Rf7
{[%clk 0:01:55.5]} 24. Bh4 {[%clk 0:02:06.8]} 24... e5 {[%clk 0:01:45.3]} 25.
Bg3 {[%clk 0:02:05]} 25... Re7 {[%clk 0:01:35.2]} 26. dxe5 {[%clk 0:01:41.7]}
26... Nxe5 {[%clk 0:01:25.2]} 27. Rac1 {[%clk 0:01:38.8]} 27... Qd7 {[%clk
0:01:24.1]} 28. Qd2 {[%clk 0:01:28.9]} 28... d4 {[%clk 0:01:21]} 29. Rc5 {[%clk
0:01:22.7]} 29... Nc6 {[%clk 0:01:01.7]} 30. Rd5 {[%clk 0:01:19.4]} 30... Qe8
{[%clk 0:00:59.7]} 31. f3 {[%clk 0:00:47.6]} 31... Nb4 {[%clk 0:00:54.1]} 32.
Qxb4 {[%clk 0:00:40.7]} 32... Bxd5 {[%clk 0:00:54.1]} 33. Bxd5 {[%clk
0:00:41.6]} 33... d3 {[%clk 0:00:50.6]} 34. Re1 {[%clk 0:00:37.7]} 34... Re2
{[%clk 0:00:39.7]} 35. Be4 {[%clk 0:00:30.5]} 35... d2 {[%clk 0:00:36.5]} 36.
Rd1 {[%clk 0:00:26.3]} 36... Qd8 {[%clk 0:00:28.8]} 37. Kf1 {[%clk 0:00:22.7]}
37... Re3 {[%clk 0:00:18.6]} 38. Qxd2 {[%clk 0:00:21.4]} 1-0

[Event "Late-Titled-Tuesday-Blitz-October-17-2023"]
[Site "Chess.com"]
[Date "2023.10.17"]
[Round "2"]
[White "stregachess"]
[Black "Nick12772"]
[Result "1-0"]
[WhiteElo "2081"]
[BlackElo "2401"]
[TimeControl "180+1"]
[EndTime "14:17:21 PDT"]
[Termination "stregachess won by checkmate"]

1. d4 {[%clk 0:03:00.9]} 1... Nf6 {[%clk 0:03:00.2]} 2. Nf3 {[%clk 0:03:00.5]}
2... g6 {[%clk 0:03:00.7]} 3. Bf4 {[%clk 0:03:00.3]} 3... Bg7 {[%clk 0:03:01.3]}
4. e3 {[%clk 0:03:00.5]} 4... d5 {[%clk 0:03:01.3]} 5. Be2 {[%clk 0:02:59]} 5...
c6 {[%clk 0:03:00.8]} 6. Nbd2 {[%clk 0:02:49]} 6... Bg4 {[%clk 0:03:00.3]} 7. h3
{[%clk 0:02:48]} 7... Bxf3 {[%clk 0:03:00.4]} 8. Nxf3 {[%clk 0:02:47.3]} 8...
Nbd7 {[%clk 0:03:00.4]} 9. Ne5 {[%clk 0:02:44]} 9... Nxe5 {[%clk 0:02:59.9]} 10.
Bxe5 {[%clk 0:02:44.2]} 10... Qb6 {[%clk 0:02:51.8]} 11. Rb1 {[%clk 0:02:43.4]}
11... Qa5+ {[%clk 0:02:48.6]} 12. c3 {[%clk 0:02:11.9]} 12... Qxa2 {[%clk
0:02:48.4]} 13. O-O {[%clk 0:02:12.2]} 13... Qa5 {[%clk 0:02:46.2]} 14. b4
{[%clk 0:02:12.2]} 14... Qd8 {[%clk 0:02:46.1]} 15. b5 {[%clk 0:02:12.7]} 15...
O-O {[%clk 0:02:38.4]} 16. bxc6 {[%clk 0:02:12.8]} 16... bxc6 {[%clk 0:02:39.3]}
17. Ba6 {[%clk 0:02:11.4]} 17... Ne4 {[%clk 0:02:28.5]} 18. Bxg7 {[%clk
0:02:10.2]} 18... Kxg7 {[%clk 0:02:29.4]} 19. Qd3 {[%clk 0:01:52.4]} 19... Rb8
{[%clk 0:02:01.6]} 20. f3 {[%clk 0:01:45.6]} 20... Nd6 {[%clk 0:01:55.9]} 21.
Qc2 {[%clk 0:01:41.8]} 21... Qa5 {[%clk 0:01:48.6]} 22. Bd3 {[%clk 0:01:40.8]}
22... Qc7 {[%clk 0:01:36.9]} 23. e4 {[%clk 0:01:35.5]} 23... dxe4 {[%clk
0:01:35.1]} 24. fxe4 {[%clk 0:01:35.6]} 24... Rxb1 {[%clk 0:01:34.6]} 25. Rxb1
{[%clk 0:01:34.7]} 25... Rb8 {[%clk 0:01:32.6]} 26. Rf1 {[%clk 0:01:31.5]} 26...
e6 {[%clk 0:01:20]} 27. Qf2 {[%clk 0:01:25.7]} 27... Ne8 {[%clk 0:01:13.6]} 28.
e5 {[%clk 0:01:16]} 28... a5 {[%clk 0:01:00.7]} 29. h4 {[%clk 0:01:15.2]} 29...
h5 {[%clk 0:01:00.2]} 30. g4 {[%clk 0:01:11.1]} 30... hxg4 {[%clk 0:00:58.2]}
31. h5 {[%clk 0:01:10.9]} 31... gxh5 {[%clk 0:00:50.9]} 32. Qf4 {[%clk
0:01:04.2]} 32... Qe7 {[%clk 0:00:51.2]} 33. Qe4 {[%clk 0:00:58.6]} 33... f5
{[%clk 0:00:45.2]} 34. exf6+ {[%clk 0:00:58.2]} 34... Nxf6 {[%clk 0:00:44.7]}
35. Qe5 {[%clk 0:00:47.5]} 35... Rf8 {[%clk 0:00:40.7]} 36. Qg5+ {[%clk
0:00:45]} 36... Kh8 {[%clk 0:00:33.1]} 37. Qh6+ {[%clk 0:00:43.5]} 37... Kg8
{[%clk 0:00:25.5]} 38. Bg6 {[%clk 0:00:19.2]} 38... Qg7 {[%clk 0:00:24.2]} 39.
Qg5 {[%clk 0:00:19.1]} 39... Nd5 {[%clk 0:00:12.6]} 40. Rxf8+ {[%clk 0:00:17.5]}
40... Kxf8 {[%clk 0:00:13.1]} 41. Qd8# {[%clk 0:00:17.3]} 1-0

[Event "Late-Titled-Tuesday-Blitz-October-17-2023"]
[Site "Chess.com"]
[Date "2023.10.17"]
[Round "2"]
[White "Hasangatin_Ramil"]
[Black "Inepton_Fermion"]
[Result "1-0"]
[WhiteElo "2709"]
[BlackElo "2379"]
[TimeControl "180+1"]
[EndTime "14:17:27 PDT"]
[Termination "Hasangatin_Ramil won on time"]

1. e4 {[%clk 0:03:00.9]} 1... c5 {[%clk 0:02:52.2]} 2. Nf3 {[%clk 0:02:35.3]}
2... e6 {[%clk 0:02:51.5]} 3. g3 {[%clk 0:02:35]} 3... d6 {[%clk 0:02:50.8]} 4.
Bg2 {[%clk 0:02:35.1]} 4... Nc6 {[%clk 0:02:46.1]} 5. O-O {[%clk 0:02:35.2]}
5... e5 {[%clk 0:02:45.8]} 6. c3 {[%clk 0:02:34.9]} 6... Nf6 {[%clk 0:02:43.4]}
7. Re1 {[%clk 0:02:34.2]} 7... Bg4 {[%clk 0:02:34.8]} 8. h3 {[%clk 0:02:33.3]}
8... Bxf3 {[%clk 0:02:34.8]} 9. Qxf3 {[%clk 0:02:32.5]} 9... Be7 {[%clk
0:02:33.1]} 10. d3 {[%clk 0:02:32.4]} 10... O-O {[%clk 0:02:32.9]} 11. Qe2
{[%clk 0:02:30.7]} 11... Re8 {[%clk 0:02:23.3]} 12. f4 {[%clk 0:02:30.7]} 12...
Bf8 {[%clk 0:02:23.8]} 13. Nd2 {[%clk 0:02:28]} 13... d5 {[%clk 0:02:08.8]} 14.
f5 {[%clk 0:02:27.9]} 14... d4 {[%clk 0:01:51]} 15. c4 {[%clk 0:02:25.4]} 15...
Be7 {[%clk 0:01:36.2]} 16. g4 {[%clk 0:02:25.2]} 16... h6 {[%clk 0:01:36.1]} 17.
a3 {[%clk 0:02:10.4]} 17... Nh7 {[%clk 0:01:34.6]} 18. Nf3 {[%clk 0:02:10]}
18... Ng5 {[%clk 0:01:32.5]} 19. Nh2 {[%clk 0:02:07.1]} 19... Nh7 {[%clk
0:01:30.6]} 20. Rf1 {[%clk 0:01:58.7]} 20... Bg5 {[%clk 0:01:28.5]} 21. Nf3
{[%clk 0:01:58.4]} 21... Bxc1 {[%clk 0:01:28.3]} 22. Raxc1 {[%clk 0:01:58.2]}
22... Ng5 {[%clk 0:01:28.6]} 23. Nh2 {[%clk 0:01:55.7]} 23... Nh7 {[%clk
0:01:28.4]} 24. Qf2 {[%clk 0:01:55.9]} 24... Rb8 {[%clk 0:01:11.9]} 25. h4
{[%clk 0:01:42.3]} 25... f6 {[%clk 0:01:06.7]} 26. Nf3 {[%clk 0:01:41.7]} 26...
Kf7 {[%clk 0:01:01.2]} 27. Qc2 {[%clk 0:01:38.9]} 27... Ke7 {[%clk 0:00:56.8]}
28. Kf2 {[%clk 0:01:38.4]} 28... Kd7 {[%clk 0:00:56.7]} 29. Qd2 {[%clk
0:01:38.8]} 29... a5 {[%clk 0:00:41.5]} 30. Rh1 {[%clk 0:01:37.6]} 30... a4
{[%clk 0:00:36]} 31. Qc2 {[%clk 0:01:36.5]} 31... Ra8 {[%clk 0:00:35.8]} 32. Bf1
{[%clk 0:01:29.2]} 32... Kc8 {[%clk 0:00:30.8]} 33. Be2 {[%clk 0:01:29.1]} 33...
Ra6 {[%clk 0:00:20.2]} 34. Rcg1 {[%clk 0:01:28.4]} 34... Qe7 {[%clk 0:00:10.9]}
35. Ke1 {[%clk 0:01:27.2]} 35... Ra7 {[%clk 0:00:10]} 36. Kd1 {[%clk 0:01:26.4]}
36... Kb8 {[%clk 0:00:10.5]} 37. Kc1 {[%clk 0:01:26.7]} 37... Ra6 {[%clk
0:00:11]} 38. Kb1 {[%clk 0:01:27]} 38... Qd7 {[%clk 0:00:09.9]} 39. Ka2 {[%clk
0:01:27]} 39... Na5 {[%clk 0:00:10]} 40. g5 {[%clk 0:01:24.1]} 40... hxg5 {[%clk
0:00:04.5]} 41. hxg5 {[%clk 0:01:25]} 41... Nxg5 {[%clk 0:00:04.5]} 42. Nxg5
{[%clk 0:01:24.8]} 42... fxg5 {[%clk 0:00:05.4]} 43. Rxg5 {[%clk 0:01:24.6]}
43... Nb3 {[%clk 0:00:03.9]} 44. Rh7 {[%clk 0:01:24]} 44... Re7 {[%clk
0:00:03.9]} 45. Rh8+ {[%clk 0:01:20.2]} 45... Ka7 {[%clk 0:00:03.9]} 46. Bh5
{[%clk 0:01:15.5]} 46... Qd6 {[%clk 0:00:02.6]} 47. Rg6 {[%clk 0:01:13]} 47...
Qd7 {[%clk 0:00:01.7]} 48. Rxa6+ {[%clk 0:01:10.8]} 48... Kxa6 {[%clk 0:00:02]}
49. Ra8+ {[%clk 0:01:09.9]} 49... Kb6 {[%clk 0:00:02.6]} 50. Bg6 {[%clk
0:01:06.9]} 50... Qd6 {[%clk 0:00:01.9]} 51. Rxa4 {[%clk 0:01:04.5]} 51... Na5
{[%clk 0:00:01.3]} 52. b4 {[%clk 0:01:04.1]} 52... cxb4 {[%clk 0:00:01.4]} 53.
axb4 {[%clk 0:01:04.1]} 1-0

[Event "Late-Titled-Tuesday-Blitz-October-17-2023"]
[Site "Chess.com"]
[Date "2023.10.17"]
[Round "2"]
[White "ozates"]
[Black "Flaccidmoves"]
[Result "0-1"]
[WhiteElo "2704"]
[BlackElo "2424"]
[TimeControl "180+1"]
[EndTime "14:17:28 PDT"]
[Termination "Flaccidmoves won by resignation"]

1. e4 {[%clk 0:03:00.9]} 1... g6 {[%clk 0:02:58.9]} 2. Nc3 {[%clk 0:02:59.4]}
2... Bg7 {[%clk 0:02:59.1]} 3. g3 {[%clk 0:03:00.2]} 3... e5 {[%clk 0:02:57.8]}
4. Bg2 {[%clk 0:03:00.7]} 4... Ne7 {[%clk 0:02:58.2]} 5. Nge2 {[%clk 0:02:59.5]}
5... O-O {[%clk 0:02:58]} 6. O-O {[%clk 0:03:00.2]} 6... d6 {[%clk 0:02:51.8]}
7. d3 {[%clk 0:02:57.5]} 7... Be6 {[%clk 0:02:46.7]} 8. f4 {[%clk 0:02:57.4]}
8... Nd7 {[%clk 0:02:43.7]} 9. d4 {[%clk 0:02:56.9]} 9... exd4 {[%clk 0:02:38]}
10. Nxd4 {[%clk 0:02:57.8]} 10... Nc5 {[%clk 0:02:30]} 11. Be3 {[%clk
0:02:55.9]} 11... Nc6 {[%clk 0:02:23.7]} 12. Nxc6 {[%clk 0:02:49.3]} 12... bxc6
{[%clk 0:02:24.6]} 13. Bxc5 {[%clk 0:02:49.8]} 13... dxc5 {[%clk 0:02:24.4]} 14.
e5 {[%clk 0:02:50.4]} 14... Qd4+ {[%clk 0:02:20.7]} 15. Kh1 {[%clk 0:02:46.1]}
15... Rab8 {[%clk 0:02:19.5]} 16. Rb1 {[%clk 0:02:41.2]} 16... Rfd8 {[%clk
0:01:55.4]} 17. Qf3 {[%clk 0:02:38.8]} 17... Bf5 {[%clk 0:01:42.8]} 18. Rbd1
{[%clk 0:02:12.2]} 18... Qc4 {[%clk 0:01:41.5]} 19. Qxc6 {[%clk 0:02:10.6]}
19... Bxc2 {[%clk 0:01:34.1]} 20. Rxd8+ {[%clk 0:02:09.6]} 20... Rxd8 {[%clk
0:01:35]} 21. Qxc7 {[%clk 0:02:10]} 21... Rd2 {[%clk 0:01:24.6]} 22. Qb8+ {[%clk
0:01:15.8]} 22... Bf8 {[%clk 0:01:23.7]} 23. Qb5 {[%clk 0:01:15]} 23... Qxb5
{[%clk 0:01:19.9]} 24. Nxb5 {[%clk 0:01:15.9]} 24... Bd3 {[%clk 0:01:20.4]} 25.
Nxa7 {[%clk 0:01:01.3]} 25... Bxf1 {[%clk 0:01:14.4]} 26. Bxf1 {[%clk
0:01:02.2]} 26... Rxb2 {[%clk 0:01:14.4]} 27. Bc4 {[%clk 0:00:59.9]} 27... Rc2
{[%clk 0:01:05.2]} 28. Bd5 {[%clk 0:00:56.8]} 28... c4 {[%clk 0:01:01.8]} 29.
Nb5 {[%clk 0:00:55.2]} 29... c3 {[%clk 0:00:56.4]} 30. Nxc3 {[%clk 0:00:38.5]}
30... Rxc3 {[%clk 0:00:56.1]} 31. Kg2 {[%clk 0:00:39.4]} 31... Ra3 {[%clk
0:00:54.7]} 32. h4 {[%clk 0:00:36.7]} 32... h5 {[%clk 0:00:54.2]} 33. Bb3 {[%clk
0:00:31.6]} 33... Bc5 {[%clk 0:00:51.9]} 34. Kf3 {[%clk 0:00:31.9]} 34... Kf8
{[%clk 0:00:51.6]} 35. g4 {[%clk 0:00:32.2]} 35... Be7 {[%clk 0:00:49.4]} 36.
gxh5 {[%clk 0:00:27.8]} 36... gxh5 {[%clk 0:00:50.3]} 37. Kg3 {[%clk 0:00:27.8]}
37... Ra7 {[%clk 0:00:46.1]} 38. f5 {[%clk 0:00:27.6]} 38... f6 {[%clk
0:00:40.3]} 39. e6 {[%clk 0:00:22.6]} 39... Bd6+ {[%clk 0:00:36.6]} 40. Kf3
{[%clk 0:00:21.4]} 40... Ra3 {[%clk 0:00:35.3]} 41. Ke4 {[%clk 0:00:21.1]} 41...
Ke7 {[%clk 0:00:34.8]} 42. Kf3 {[%clk 0:00:14.4]} 42... Ra5 {[%clk 0:00:34.1]}
43. Ke4 {[%clk 0:00:14.4]} 43... Re5+ {[%clk 0:00:34]} 44. Kd4 {[%clk
0:00:14.9]} 44... Rxf5 {[%clk 0:00:34]} 45. a4 {[%clk 0:00:13]} 45... Rf4+
{[%clk 0:00:32.4]} 46. Kd5 {[%clk 0:00:12.9]} 46... Bb4 {[%clk 0:00:30.9]} 0-1

[Event "Late-Titled-Tuesday-Blitz-October-17-2023"]
[Site "Chess.com"]
[Date "2023.10.17"]
[Round "2"]
[White "maximnovik"]
[Black "Walter_White_Poland"]
[Result "1-0"]
[WhiteElo "2510"]
[BlackElo "2326"]
[TimeControl "180+1"]
[EndTime "14:17:28 PDT"]
[Termination "maximnovik won on time"]

1. e4 {[%clk 0:03:00.6]} 1... e5 {[%clk 0:02:59.5]} 2. Nf3 {[%clk 0:03:00.4]}
2... Nc6 {[%clk 0:02:59.6]} 3. Bc4 {[%clk 0:03:00.4]} 3... Nf6 {[%clk
0:02:59.1]} 4. d3 {[%clk 0:03:00.5]} 4... d5 {[%clk 0:02:59.1]} 5. exd5 {[%clk
0:02:58.9]} 5... Nxd5 {[%clk 0:02:59.4]} 6. O-O {[%clk 0:02:58.7]} 6... Nb6
{[%clk 0:02:59.3]} 7. Bb5 {[%clk 0:02:57.9]} 7... Bd6 {[%clk 0:02:59.3]} 8. h3
{[%clk 0:02:57]} 8... Bd7 {[%clk 0:02:54]} 9. Re1 {[%clk 0:02:56.6]} 9... f6
{[%clk 0:02:50.6]} 10. d4 {[%clk 0:02:19.7]} 10... O-O {[%clk 0:02:49.7]} 11. c3
{[%clk 0:02:18.8]} 11... Re8 {[%clk 0:02:41.4]} 12. Nbd2 {[%clk 0:01:46.4]}
12... a6 {[%clk 0:02:39.5]} 13. Bxc6 {[%clk 0:01:19]} 13... Bxc6 {[%clk
0:02:39]} 14. dxe5 {[%clk 0:01:19.3]} 14... Bxe5 {[%clk 0:02:22.7]} 15. Nxe5
{[%clk 0:01:19.3]} 15... fxe5 {[%clk 0:02:22.6]} 16. Qe2 {[%clk 0:01:17.4]}
16... e4 {[%clk 0:02:16.7]} 17. Nf1 {[%clk 0:01:17.1]} 17... Qh4 {[%clk
0:01:53.5]} 18. Be3 {[%clk 0:01:16.1]} 18... Bb5 {[%clk 0:01:48.6]} 19. Qg4
{[%clk 0:01:15.4]} 19... Qxg4 {[%clk 0:01:47.4]} 20. hxg4 {[%clk 0:01:15.5]}
20... Bxf1 {[%clk 0:01:24.2]} 21. Kxf1 {[%clk 0:01:14.7]} 21... Nc4 {[%clk
0:01:24.3]} 22. b3 {[%clk 0:01:04.8]} 22... Nb2 {[%clk 0:01:23.8]} 23. Ke2
{[%clk 0:01:00.5]} 23... Nd3 {[%clk 0:01:23.6]} 24. Rh1 {[%clk 0:00:59.8]} 24...
b5 {[%clk 0:01:22.4]} 25. Rh5 {[%clk 0:00:58.8]} 25... Rac8 {[%clk 0:01:14.6]}
26. Rah1 {[%clk 0:00:58]} 26... h6 {[%clk 0:01:11.6]} 27. g5 {[%clk 0:00:58.3]}
27... hxg5 {[%clk 0:01:10.3]} 28. Rxg5 {[%clk 0:00:58.5]} 28... c5 {[%clk
0:01:08.2]} 29. Rh4 {[%clk 0:00:55.5]} 29... Rc7 {[%clk 0:00:50.4]} 30. Rgg4
{[%clk 0:00:48.3]} 30... Rce7 {[%clk 0:00:43.7]} 31. Rh5 {[%clk 0:00:48.3]}
31... Re5 {[%clk 0:00:41.7]} 32. Rxe5 {[%clk 0:00:45]} 32... Rxe5 {[%clk
0:00:41.7]} 33. Rg6 {[%clk 0:00:44.6]} 33... a5 {[%clk 0:00:36.2]} 34. Ra6
{[%clk 0:00:44.2]} 34... b4 {[%clk 0:00:15.4]} 35. c4 {[%clk 0:00:44.3]} 35...
Kf7 {[%clk 0:00:11.2]} 36. Rxa5 {[%clk 0:00:44.3]} 36... Rh5 {[%clk 0:00:10.8]}
37. g4 {[%clk 0:00:41.5]} 37... Rh1 {[%clk 0:00:10]} 38. Bxc5 {[%clk 0:00:40.4]}
38... Re1+ {[%clk 0:00:09.5]} 39. Kd2 {[%clk 0:00:40.6]} 39... Rb1 {[%clk
0:00:07.7]} 40. Bd4 {[%clk 0:00:40.4]} 40... Rf1 {[%clk 0:00:06.3]} 41. Rb5
{[%clk 0:00:37.9]} 41... Nxf2 {[%clk 0:00:05.7]} 42. Ke2 {[%clk 0:00:37.3]} 1-0

[Event "Late-Titled-Tuesday-Blitz-October-17-2023"]
[Site "Chess.com"]
[Date "2023.10.17"]
[Round "2"]
[White "mishanick"]
[Black "NateSolon"]
[Result "1-0"]
[WhiteElo "3028"]
[BlackElo "2629"]
[TimeControl "180+1"]
[EndTime "14:17:29 PDT"]
[Termination "mishanick won by resignation"]

1. d4 {[%clk 0:03:00.9]} 1... d5 {[%clk 0:02:59.7]} 2. c4 {[%clk 0:03:01.2]}
2... c6 {[%clk 0:03:00.1]} 3. Nc3 {[%clk 0:03:01.5]} 3... Nf6 {[%clk 0:03:00.4]}
4. Nf3 {[%clk 0:03:02.3]} 4... e6 {[%clk 0:03:00.6]} 5. e3 {[%clk 0:03:03.1]}
5... Nbd7 {[%clk 0:03:00.4]} 6. Qc2 {[%clk 0:03:02.4]} 6... Bd6 {[%clk
0:03:00.2]} 7. Be2 {[%clk 0:03:03.1]} 7... O-O {[%clk 0:03:00]} 8. O-O {[%clk
0:03:03.7]} 8... dxc4 {[%clk 0:03:00.5]} 9. Bxc4 {[%clk 0:03:04.4]} 9... b5
{[%clk 0:03:00.8]} 10. Bd3 {[%clk 0:03:04.5]} 10... Bb7 {[%clk 0:03:01.2]} 11.
e4 {[%clk 0:03:05.2]} 11... e5 {[%clk 0:03:01.3]} 12. Bg5 {[%clk 0:03:05]} 12...
Qc7 {[%clk 0:02:54.7]} 13. h3 {[%clk 0:02:54.2]} 13... exd4 {[%clk 0:02:40.1]}
14. Nxd4 {[%clk 0:02:53.8]} 14... Rfe8 {[%clk 0:02:32]} 15. Nf5 {[%clk
0:02:53.6]} 15... Bf8 {[%clk 0:02:25.6]} 16. Nxb5 {[%clk 0:02:53.2]} 16... Qe5
{[%clk 0:02:16.4]} 17. Nc3 {[%clk 0:02:37.4]} 17... g6 {[%clk 0:02:12.9]} 18.
Nh6+ {[%clk 0:02:23]} 18... Kg7 {[%clk 0:02:12.9]} 19. Be3 {[%clk 0:02:11]}
19... Bc5 {[%clk 0:02:06.6]} 20. Nxf7 {[%clk 0:02:10.8]} 20... Kxf7 {[%clk
0:01:59.4]} 21. Qb3+ {[%clk 0:02:11.4]} 21... Kg7 {[%clk 0:01:55.8]} 22. Qxb7
{[%clk 0:02:11.5]} 22... Rab8 {[%clk 0:01:47.2]} 23. Qxc6 {[%clk 0:02:10.9]}
23... Rec8 {[%clk 0:01:43.3]} 24. Qa4 {[%clk 0:02:09.3]} 24... Bxe3 {[%clk
0:01:40.7]} 25. fxe3 {[%clk 0:02:10.2]} 25... Rxb2 {[%clk 0:01:36.5]} 26. Nd5
{[%clk 0:01:46.4]} 26... Qg3 {[%clk 0:01:30.7]} 27. Nf4 {[%clk 0:01:46.9]} 27...
Qxe3+ {[%clk 0:01:23.2]} 28. Kh1 {[%clk 0:01:41.9]} 28... Nc5 {[%clk 0:01:15.8]}
29. Qxa7+ {[%clk 0:01:25.9]} 29... Rb7 {[%clk 0:01:15.2]} 30. Qa3 {[%clk
0:01:19.8]} 30... Nfxe4 {[%clk 0:01:14.9]} 31. Rf3 {[%clk 0:01:15.3]} 31... Qd4
{[%clk 0:01:05.8]} 32. Re1 {[%clk 0:00:53.6]} 32... Nf2+ {[%clk 0:01:02.4]} 33.
Kh2 {[%clk 0:00:53.5]} 33... Nfxd3 {[%clk 0:00:59.3]} 34. Nxd3 {[%clk
0:00:54.4]} 34... Nxd3 {[%clk 0:00:54.1]} 35. Rxd3 {[%clk 0:00:51]} 35... Qf4+
{[%clk 0:00:52]} 36. Kh1 {[%clk 0:00:51.1]} 36... Rf7 {[%clk 0:00:48.1]} 37. Rf3
{[%clk 0:00:48.6]} 37... Qc7 {[%clk 0:00:45.7]} 38. Rxf7+ {[%clk 0:00:47.3]}
38... Kxf7 {[%clk 0:00:46.6]} 39. Qb4 {[%clk 0:00:44.3]} 39... Qc3 {[%clk
0:00:41.5]} 40. Rf1+ {[%clk 0:00:41.8]} 40... Kg7 {[%clk 0:00:36.5]} 41. Qe7+
{[%clk 0:00:35.7]} 41... Kh6 {[%clk 0:00:27.6]} 42. Rf7 {[%clk 0:00:26.1]} 1-0

[Event "Late-Titled-Tuesday-Blitz-October-17-2023"]
[Site "Chess.com"]
[Date "2023.10.17"]
[Round "2"]
[White "Maksimus1998"]
[Black "rasmussvane"]
[Result "0-1"]
[WhiteElo "2613"]
[BlackElo "2984"]
[TimeControl "180+1"]
[EndTime "14:17:32 PDT"]
[Termination "rasmussvane won on time"]

1. b3 {[%clk 0:03:00.9]} 1... d5 {[%clk 0:02:57.9]} 2. Bb2 {[%clk 0:03:00.8]}
2... Bf5 {[%clk 0:02:55.1]} 3. d3 {[%clk 0:03:00.7]} 3... e6 {[%clk 0:02:44.8]}
4. Nd2 {[%clk 0:03:00.2]} 4... Nf6 {[%clk 0:02:44]} 5. g3 {[%clk 0:02:59.8]}
5... h6 {[%clk 0:02:41]} 6. Bg2 {[%clk 0:02:59.6]} 6... Bh7 {[%clk 0:02:33.7]}
7. e4 {[%clk 0:02:59.2]} 7... Bb4 {[%clk 0:02:24.6]} 8. a3 {[%clk 0:02:03.2]}
8... Bxd2+ {[%clk 0:02:14.4]} 9. Qxd2 {[%clk 0:02:04.1]} 9... dxe4 {[%clk
0:02:15.1]} 10. Qb4 {[%clk 0:02:04]} 10... Nc6 {[%clk 0:01:06.4]} 11. Qxb7
{[%clk 0:02:02.5]} 11... Nd4 {[%clk 0:00:43.4]} 12. O-O-O {[%clk 0:01:23.3]}
12... c5 {[%clk 0:00:22.2]} 13. dxe4 {[%clk 0:01:10.6]} 13... O-O {[%clk
0:00:21.5]} 14. f3 {[%clk 0:00:27.8]} 14... e5 {[%clk 0:00:18]} 15. Qa6 {[%clk
0:00:26.3]} 15... Qc7 {[%clk 0:00:17.3]} 16. Ne2 {[%clk 0:00:25.8]} 16... Rfc8
{[%clk 0:00:14.9]} 17. Kb1 {[%clk 0:00:23.4]} 17... Rab8 {[%clk 0:00:14.1]} 18.
Qc4 {[%clk 0:00:20.2]} 18... Ne8 {[%clk 0:00:12.2]} 19. Nc3 {[%clk 0:00:18.7]}
19... Nd6 {[%clk 0:00:12.5]} 20. Qa4 {[%clk 0:00:12.5]} 20... c4 {[%clk
0:00:11.6]} 21. Nd5 {[%clk 0:00:12.7]} 21... Qb7 {[%clk 0:00:12.2]} 22. Bxd4
{[%clk 0:00:10.6]} 22... cxb3 {[%clk 0:00:07.9]} 23. cxb3 {[%clk 0:00:03.5]}
23... exd4 {[%clk 0:00:05.4]} 24. Kb2 {[%clk 0:00:03.6]} 24... Nc4+ {[%clk
0:00:03.8]} 25. Ka2 {[%clk 0:00:03.9]} 25... Ne3 {[%clk 0:00:04.2]} 26. Rd2
{[%clk 0:00:02.8]} 26... Nxg2 {[%clk 0:00:04.2]} 27. Rxg2 {[%clk 0:00:02.6]}
27... f5 {[%clk 0:00:04.7]} 28. Qb4 {[%clk 0:00:02]} 28... Qd7 {[%clk
0:00:03.6]} 29. Ne7+ {[%clk 0:00:02.2]} 29... Kh8 {[%clk 0:00:04.1]} 30. Nxc8
{[%clk 0:00:02.8]} 30... Rxb4 {[%clk 0:00:04.4]} 31. Nb6 {[%clk 0:00:02.3]}
31... Rxb6 {[%clk 0:00:04.5]} 0-1